[Event "Early-Titled-Tuesday-Blitz-February-20-2024"]
[Site "Chess.com"]
[Date "2024.02.20"]
[Round "6"]
[White "CSB7"]
[Black "Manukyan_Artak"]
[Result "1-0"]
[WhiteElo "2774"]
[BlackElo "2550"]
[TimeControl "180+1"]
[EndTime "9:06:35 PST"]
[Termination "CSB7 won by resignation"]

1. d4 {[%clk 0:03:00.9]} 1... c6 {[%clk 0:02:57.1]} 2. c4 {[%clk 0:02:49.5]}
2... d5 {[%clk 0:02:57.6]} 3. Nf3 {[%clk 0:02:50.2]} 3... Nf6 {[%clk 0:02:57]}
4. Qc2 {[%clk 0:02:50.8]} 4... g6 {[%clk 0:02:56.6]} 5. Bf4 {[%clk 0:02:48.9]}
5... Bf5 {[%clk 0:02:56.6]} 6. Qb3 {[%clk 0:02:48.5]} 6... Qb6 {[%clk
0:02:56.1]} 7. c5 {[%clk 0:02:48.4]} 7... Qxb3 {[%clk 0:02:55.9]} 8. axb3 {[%clk
0:02:49.3]} 8... Nbd7 {[%clk 0:02:56]} 9. Nc3 {[%clk 0:02:46.3]} 9... a6 {[%clk
0:02:56]} 10. b4 {[%clk 0:02:46]} 10... Rc8 {[%clk 0:02:56]} 11. e3 {[%clk
0:02:40.4]} 11... Nh5 {[%clk 0:02:45.4]} 12. Kd2 {[%clk 0:02:11.5]} 12... Nxf4
{[%clk 0:02:40.6]} 13. exf4 {[%clk 0:02:12.4]} 13... Bh6 {[%clk 0:02:41]} 14. g3
{[%clk 0:02:11.4]} 14... O-O {[%clk 0:02:34.7]} 15. Bd3 {[%clk 0:02:08.5]} 15...
Bxd3 {[%clk 0:02:27.6]} 16. Kxd3 {[%clk 0:02:09.4]} 16... e6 {[%clk 0:02:24.1]}
17. Rhe1 {[%clk 0:02:06.8]} 17... Bg7 {[%clk 0:02:16.4]} 18. Re2 {[%clk
0:01:53.2]} 18... Nf6 {[%clk 0:02:12.2]} 19. Nd2 {[%clk 0:01:49.9]} 19... h5
{[%clk 0:02:06.7]} 20. h4 {[%clk 0:01:46.4]} 20... Rcd8 {[%clk 0:02:02.1]} 21.
Nb3 {[%clk 0:01:45.3]} 21... Rfe8 {[%clk 0:01:53.7]} 22. f3 {[%clk 0:01:43]}
22... Kf8 {[%clk 0:01:50]} 23. Na5 {[%clk 0:01:42.6]} 23... Re7 {[%clk
0:01:45.9]} 24. Na4 {[%clk 0:01:40.1]} 24... Ne8 {[%clk 0:01:41.5]} 25. Rae1
{[%clk 0:01:39.2]} 25... Rb8 {[%clk 0:01:32.3]} 26. Nb6 {[%clk 0:01:28.3]} 26...
Nc7 {[%clk 0:01:27.5]} 27. g4 {[%clk 0:01:22.9]} 27... Nb5 {[%clk 0:01:24.6]}
28. Nb3 {[%clk 0:01:22.6]} 28... Bf6 {[%clk 0:01:13]} 29. Rh1 {[%clk 0:01:17.6]}
29... Kg7 {[%clk 0:01:08.8]} 30. g5 {[%clk 0:01:17]} 1-0

[Event "Early-Titled-Tuesday-Blitz-February-20-2024"]
[Site "Chess.com"]
[Date "2024.02.20"]
[Round "6"]
[White "Grande_Strategia"]
[Black "Chessdude1987"]
[Result "0-1"]
[WhiteElo "2510"]
[BlackElo "2324"]
[TimeControl "180+1"]
[EndTime "9:06:54 PST"]
[Termination "Chessdude1987 won by checkmate"]

1. f3 {[%clk 0:03:00.9]} 1... e5 {[%clk 0:02:59.5]} 2. Kf2 {[%clk 0:03:01.8]}
2... f5 {[%clk 0:02:58.9]} 3. g3 {[%clk 0:03:00.8]} 3... Nf6 {[%clk 0:02:58.4]}
4. Bg2 {[%clk 0:03:01.5]} 4... d5 {[%clk 0:02:56.5]} 5. e3 {[%clk 0:03:01.8]}
5... f4 {[%clk 0:02:55.7]} 6. Ne2 {[%clk 0:03:00.7]} 6... fxe3+ {[%clk 0:02:53]}
7. dxe3 {[%clk 0:03:01.6]} 7... Bc5 {[%clk 0:02:51.5]} 8. Rf1 {[%clk 0:02:55.6]}
8... Nc6 {[%clk 0:02:43.7]} 9. Kg1 {[%clk 0:02:55.9]} 9... Be6 {[%clk
0:02:43.7]} 10. c3 {[%clk 0:02:53]} 10... Qd7 {[%clk 0:02:43.4]} 11. b4 {[%clk
0:02:52.8]} 11... Bb6 {[%clk 0:02:41.8]} 12. a4 {[%clk 0:02:52.9]} 12... a6
{[%clk 0:02:38.3]} 13. Na3 {[%clk 0:02:35.2]} 13... Bh3 {[%clk 0:02:37.5]} 14.
b5 {[%clk 0:02:30.9]} 14... axb5 {[%clk 0:02:36.2]} 15. axb5 {[%clk 0:02:29.7]}
15... Ne7 {[%clk 0:02:34.9]} 16. f4 {[%clk 0:02:11.5]} 16... Bxg2 {[%clk
0:02:21.4]} 17. Kxg2 {[%clk 0:02:10.5]} 17... O-O {[%clk 0:02:18.3]} 18. fxe5
{[%clk 0:01:39.8]} 18... Ng4 {[%clk 0:02:18.3]} 19. Rxf8+ {[%clk 0:01:23.5]}
19... Rxf8 {[%clk 0:02:17.4]} 20. Nf4 {[%clk 0:01:24]} 20... Nxe5 {[%clk
0:02:10.6]} 21. Nc2 {[%clk 0:01:04.4]} 21... g5 {[%clk 0:02:00.2]} 22. Nh3
{[%clk 0:00:53.1]} 22... Qf5 {[%clk 0:01:39.3]} 23. Ba3 {[%clk 0:00:41]} 23...
Qe4+ {[%clk 0:01:30.3]} 24. Kg1 {[%clk 0:00:37.1]} 24... Nf3+ {[%clk 0:01:23.1]}
25. Kg2 {[%clk 0:00:37.5]} 25... Ne1+ {[%clk 0:01:17]} 26. Kg1 {[%clk
0:00:36.5]} 26... Qg2# {[%clk 0:01:16.5]} 0-1

[Event "Early-Titled-Tuesday-Blitz-February-20-2024"]
[Site "Chess.com"]
[Date "2024.02.20"]
[Round "6"]
[White "Egor_Koshulyan"]
[Black "IndianSchoolOfSuffering"]
[Result "1-0"]
[WhiteElo "2622"]
[BlackElo "2434"]
[TimeControl "180+1"]
[EndTime "9:07:06 PST"]
[Termination "Egor_Koshulyan won by resignation"]

1. e4 {[%clk 0:03:00.9]} 1... c6 {[%clk 0:02:56.2]} 2. d4 {[%clk 0:02:47.8]}
2... d5 {[%clk 0:02:55.5]} 3. e5 {[%clk 0:02:48.5]} 3... Bf5 {[%clk 0:02:54.7]}
4. Nf3 {[%clk 0:02:39.2]} 4... e6 {[%clk 0:02:52.6]} 5. Be2 {[%clk 0:02:39.6]}
5... Nd7 {[%clk 0:02:48.7]} 6. O-O {[%clk 0:02:40.5]} 6... Ne7 {[%clk
0:02:40.3]} 7. a4 {[%clk 0:02:37.1]} 7... a6 {[%clk 0:02:38.6]} 8. a5 {[%clk
0:02:34.6]} 8... h6 {[%clk 0:02:27.3]} 9. Nbd2 {[%clk 0:02:29.3]} 9... Bg6
{[%clk 0:02:20.9]} 10. c3 {[%clk 0:02:28.2]} 10... Nf5 {[%clk 0:02:20.4]} 11. b4
{[%clk 0:02:27.1]} 11... Be7 {[%clk 0:02:07.2]} 12. Nb3 {[%clk 0:02:26]} 12...
O-O {[%clk 0:02:04.7]} 13. Nc5 {[%clk 0:02:22.3]} 13... Bxc5 {[%clk 0:02:01.1]}
14. bxc5 {[%clk 0:02:23.2]} 14... f6 {[%clk 0:02:00.5]} 15. Bf4 {[%clk
0:02:16.8]} 15... fxe5 {[%clk 0:01:58.1]} 16. Nxe5 {[%clk 0:02:15.2]} 16... Nxe5
{[%clk 0:01:56.1]} 17. Bxe5 {[%clk 0:02:16.1]} 17... Ne7 {[%clk 0:01:36.3]} 18.
Qb3 {[%clk 0:02:10.9]} 18... Qd7 {[%clk 0:01:33.3]} 19. Ra2 {[%clk 0:02:06.2]}
19... Bf5 {[%clk 0:01:21.4]} 20. Rb2 {[%clk 0:02:05.5]} 20... Ra7 {[%clk
0:00:52.8]} 21. Qb6 {[%clk 0:02:00.7]} 21... Nc8 {[%clk 0:00:51.6]} 22. Qc7
{[%clk 0:01:46.4]} 22... Qxc7 {[%clk 0:00:50.9]} 23. Bxc7 {[%clk 0:01:47.3]}
23... Rf7 {[%clk 0:00:50.3]} 24. Be5 {[%clk 0:01:44.3]} 24... Ne7 {[%clk
0:00:48]} 25. Bb8 {[%clk 0:01:43.6]} 25... Ra8 {[%clk 0:00:44]} 26. Rxb7 {[%clk
0:01:44.1]} 26... Ng6 {[%clk 0:00:43]} 27. Rb6 {[%clk 0:01:43.1]} 27... e5
{[%clk 0:00:39.4]} 28. Bxa6 {[%clk 0:01:38]} 28... exd4 {[%clk 0:00:36.1]} 29.
cxd4 {[%clk 0:01:38.9]} 29... Kh7 {[%clk 0:00:34.3]} 30. Ra1 {[%clk 0:01:32.2]}
1-0

[Event "Early-Titled-Tuesday-Blitz-February-20-2024"]
[Site "Chess.com"]
[Date "2024.02.20"]
[Round "6"]
[White "KetiTsatsalashvili"]
[Black "SaqoChess_Twitch"]
[Result "1-0"]
[WhiteElo "2445"]
[BlackElo "2627"]
[TimeControl "180+1"]
[EndTime "9:07:06 PST"]
[Termination "KetiTsatsalashvili won by checkmate"]

1. d4 {[%clk 0:03:00.9]} 1... d5 {[%clk 0:02:57.6]} 2. Nf3 {[%clk 0:03:00.8]}
2... Nf6 {[%clk 0:02:57.3]} 3. c4 {[%clk 0:02:59.9]} 3... e6 {[%clk 0:02:57.7]}
4. Nc3 {[%clk 0:02:57.5]} 4... Be7 {[%clk 0:02:58]} 5. Bf4 {[%clk 0:02:56.4]}
5... c5 {[%clk 0:02:57.5]} 6. cxd5 {[%clk 0:02:55.2]} 6... Nxd5 {[%clk 0:02:57]}
7. Nxd5 {[%clk 0:02:54.5]} 7... exd5 {[%clk 0:02:53.4]} 8. e3 {[%clk 0:02:52.8]}
8... O-O {[%clk 0:02:52.8]} 9. Bd3 {[%clk 0:02:50.2]} 9... h6 {[%clk 0:02:50.8]}
10. O-O {[%clk 0:02:48.4]} 10... c4 {[%clk 0:02:51.1]} 11. Bc2 {[%clk
0:02:48.7]} 11... b5 {[%clk 0:02:51.6]} 12. Ne5 {[%clk 0:02:45]} 12... Bb7
{[%clk 0:02:49.5]} 13. Bxh6 {[%clk 0:02:36.2]} 13... Nc6 {[%clk 0:02:04.7]} 14.
Qg4 {[%clk 0:02:20]} 14... Bf6 {[%clk 0:01:57.3]} 15. Qf5 {[%clk 0:01:07]} 15...
Re8 {[%clk 0:01:48.3]} 16. Bxg7 {[%clk 0:00:57.7]} 16... Bxg7 {[%clk 0:01:12.4]}
17. Qxf7+ {[%clk 0:00:54.7]} 17... Kh8 {[%clk 0:01:11.2]} 18. Ng6+ {[%clk
0:00:29.9]} 18... Kh7 {[%clk 0:01:08.7]} 19. Ne7+ {[%clk 0:00:28.5]} 19... Kh8
{[%clk 0:01:03.1]} 20. Qh5+ {[%clk 0:00:26.8]} 20... Bh6 {[%clk 0:01:03.5]} 21.
Qxh6# {[%clk 0:00:26.8]} 1-0

[Event "Early-Titled-Tuesday-Blitz-February-20-2024"]
[Site "Chess.com"]
[Date "2024.02.20"]
[Round "6"]
[White "Jamal-Jamal-Jamal"]
[Black "nicolasbatista3"]
[Result "1-0"]
[WhiteElo "2283"]
[BlackElo "2406"]
[TimeControl "180+1"]
[EndTime "9:07:12 PST"]
[Termination "Jamal-Jamal-Jamal won by checkmate"]

1. d4 {[%clk 0:03:00.9]} 1... d5 {[%clk 0:02:59.8]} 2. f3 {[%clk 0:03:01.1]}
2... Nf6 {[%clk 0:02:59.5]} 3. e4 {[%clk 0:03:01]} 3... dxe4 {[%clk 0:02:59.5]}
4. fxe4 {[%clk 0:03:01.9]} 4... Nxe4 {[%clk 0:02:59.6]} 5. Nc3 {[%clk 0:03:02]}
5... Nxc3 {[%clk 0:02:59.3]} 6. bxc3 {[%clk 0:03:02.5]} 6... Bf5 {[%clk
0:02:57.4]} 7. Nf3 {[%clk 0:02:58.2]} 7... e6 {[%clk 0:02:57.4]} 8. Bd3 {[%clk
0:02:57.2]} 8... Bg6 {[%clk 0:02:55.6]} 9. O-O {[%clk 0:02:54.3]} 9... Be7
{[%clk 0:02:54.2]} 10. Rb1 {[%clk 0:02:47.3]} 10... b6 {[%clk 0:02:47.2]} 11.
Ne5 {[%clk 0:02:45.7]} 11... O-O {[%clk 0:02:37.7]} 12. Qf3 {[%clk 0:02:29.4]}
12... Nd7 {[%clk 0:02:30.5]} 13. Nc6 {[%clk 0:02:14.2]} 13... Qe8 {[%clk
0:02:30]} 14. Ba6 {[%clk 0:02:00.5]} 14... Nf6 {[%clk 0:02:19.4]} 15. Bb7 {[%clk
0:01:48]} 15... Be4 {[%clk 0:02:18.1]} 16. Nxe7+ {[%clk 0:01:47.3]} 16... Qxe7
{[%clk 0:02:16.2]} 17. Bxe4 {[%clk 0:01:47.8]} 17... Nxe4 {[%clk 0:02:16.7]} 18.
Qxe4 {[%clk 0:01:48.5]} 18... Rad8 {[%clk 0:02:12.9]} 19. Bf4 {[%clk 0:01:39.8]}
19... c5 {[%clk 0:02:11.4]} 20. h3 {[%clk 0:01:34.1]} 20... cxd4 {[%clk
0:02:10.6]} 21. cxd4 {[%clk 0:01:34.2]} 21... Qa3 {[%clk 0:01:49.5]} 22. Be5
{[%clk 0:01:23.3]} 22... Qxa2 {[%clk 0:01:46.8]} 23. Ra1 {[%clk 0:01:14.6]}
23... Qc4 {[%clk 0:01:31.5]} 24. Rxa7 {[%clk 0:00:58.6]} 24... f6 {[%clk
0:01:11.4]} 25. Qb7 {[%clk 0:00:51.1]} 25... fxe5 {[%clk 0:00:48]} 26. Qxg7#
{[%clk 0:00:48.1]} 1-0

[Event "Early-Titled-Tuesday-Blitz-February-20-2024"]
[Site "Chess.com"]
[Date "2024.02.20"]
[Round "6"]
[White "Viacheslav92"]
[Black "AlexPapasimakopoulos"]
[Result "0-1"]
[WhiteElo "2546"]
[BlackElo "2763"]
[TimeControl "180+1"]
[EndTime "9:07:26 PST"]
[Termination "AlexPapasimakopoulos won by resignation"]

1. e4 {[%clk 0:03:00.9]} 1... e6 {[%clk 0:03:00.5]} 2. Nf3 {[%clk 0:02:55.3]}
2... d5 {[%clk 0:03:01.3]} 3. e5 {[%clk 0:02:52.5]} 3... c5 {[%clk 0:03:01.6]}
4. g3 {[%clk 0:02:49.5]} 4... Nc6 {[%clk 0:03:01.9]} 5. Bg2 {[%clk 0:02:48.6]}
5... f6 {[%clk 0:02:53.9]} 6. Qe2 {[%clk 0:02:47.6]} 6... fxe5 {[%clk
0:02:53.5]} 7. Nxe5 {[%clk 0:02:48.5]} 7... Nf6 {[%clk 0:02:52.4]} 8. O-O {[%clk
0:02:47.2]} 8... Bd6 {[%clk 0:02:52.6]} 9. Nxc6 {[%clk 0:02:44.9]} 9... bxc6
{[%clk 0:02:53.5]} 10. c4 {[%clk 0:02:45.2]} 10... O-O {[%clk 0:02:53.1]} 11. d3
{[%clk 0:02:43.2]} 11... e5 {[%clk 0:02:49.8]} 12. Nc3 {[%clk 0:02:42.3]} 12...
Bg4 {[%clk 0:02:49.8]} 13. Qe1 {[%clk 0:02:38.7]} 13... d4 {[%clk 0:02:47.7]}
14. Ne4 {[%clk 0:02:37.9]} 14... Nxe4 {[%clk 0:02:48.2]} 15. Bxe4 {[%clk
0:02:37.7]} 15... Bh3 {[%clk 0:02:48.7]} 16. Bg2 {[%clk 0:02:35]} 16... Bxg2
{[%clk 0:02:49]} 17. Kxg2 {[%clk 0:02:35.9]} 17... Qd7 {[%clk 0:02:41]} 18. Qe4
{[%clk 0:02:34]} 18... Rf6 {[%clk 0:02:41.4]} 19. Bg5 {[%clk 0:02:31.7]} 19...
Rf7 {[%clk 0:02:41]} 20. Bd2 {[%clk 0:02:31.9]} 20... Raf8 {[%clk 0:02:40.8]}
21. Rae1 {[%clk 0:02:30.6]} 21... h5 {[%clk 0:02:38.8]} 22. f3 {[%clk
0:02:29.4]} 22... Bc7 {[%clk 0:02:30.2]} 23. b3 {[%clk 0:02:24.1]} 23... Qf5
{[%clk 0:02:30.1]} 24. Qxf5 {[%clk 0:02:22.6]} 24... Rxf5 {[%clk 0:02:31]} 25.
Re4 {[%clk 0:02:20.7]} 25... a5 {[%clk 0:02:24.8]} 26. h3 {[%clk 0:02:17.1]}
26... a4 {[%clk 0:02:21.8]} 27. b4 {[%clk 0:02:14]} 27... Rb8 {[%clk 0:02:21.6]}
28. a3 {[%clk 0:02:09.4]} 28... Bd6 {[%clk 0:02:21.9]} 29. Rb1 {[%clk
0:02:04.9]} 29... cxb4 {[%clk 0:02:21.8]} 30. axb4 {[%clk 0:01:55.9]} 30... Rf7
{[%clk 0:02:22.1]} 31. c5 {[%clk 0:01:42.3]} 31... Bc7 {[%clk 0:02:17.9]} 32.
Ra1 {[%clk 0:01:40.1]} 32... Ra8 {[%clk 0:02:18.4]} 33. Ra3 {[%clk 0:01:31.5]}
33... Raf8 {[%clk 0:02:12.3]} 34. f4 {[%clk 0:01:25.4]} 34... exf4 {[%clk
0:02:12.7]} 35. gxf4 {[%clk 0:01:23]} 35... g5 {[%clk 0:02:08.8]} 36. Rxa4
{[%clk 0:01:18.7]} 36... gxf4 {[%clk 0:02:07.6]} 37. Kf3 {[%clk 0:01:18.8]}
37... Rg7 {[%clk 0:02:07.8]} 38. Be1 {[%clk 0:01:19.3]} 38... Rg1 {[%clk
0:02:07.5]} 39. Bf2 {[%clk 0:01:18.4]} 39... Rh1 {[%clk 0:02:07.8]} 40. Kg2
{[%clk 0:01:13.4]} 40... Rd1 {[%clk 0:02:08.4]} 41. Kf3 {[%clk 0:00:50.4]} 41...
Rxd3+ {[%clk 0:02:07.8]} 42. Ke2 {[%clk 0:00:50.9]} 42... Rxh3 {[%clk 0:02:01]}
43. Ra7 {[%clk 0:00:47.1]} 43... f3+ {[%clk 0:02:01.6]} 44. Ke1 {[%clk 0:00:41]}
44... Bg3 {[%clk 0:02:00.9]} 45. Bxg3 {[%clk 0:00:38.8]} 45... Rxg3 {[%clk
0:02:01.8]} 46. Ra2 {[%clk 0:00:20.2]} 46... Rg1+ {[%clk 0:02:02.1]} 47. Kf2
{[%clk 0:00:18.3]} 47... Rg2+ {[%clk 0:02:03]} 0-1

[Event "Early-Titled-Tuesday-Blitz-February-20-2024"]
[Site "Chess.com"]
[Date "2024.02.20"]
[Round "6"]
[White "DmitriiZakurdaev"]
[Black "Felix-Rose"]
[Result "1-0"]
[WhiteElo "2444"]
[BlackElo "2274"]
[TimeControl "180+1"]
[EndTime "9:07:28 PST"]
[Termination "DmitriiZakurdaev won by resignation"]

1. d4 {[%clk 0:02:58.2]} 1... d5 {[%clk 0:02:59.3]} 2. c4 {[%clk 0:02:58.2]}
2... e6 {[%clk 0:02:59.5]} 3. Nc3 {[%clk 0:02:58.4]} 3... Nf6 {[%clk 0:02:59.9]}
4. Nf3 {[%clk 0:02:58.6]} 4... Be7 {[%clk 0:02:59.3]} 5. Bf4 {[%clk 0:02:58.4]}
5... O-O {[%clk 0:02:58.5]} 6. e3 {[%clk 0:02:58.7]} 6... b6 {[%clk 0:02:56.3]}
7. cxd5 {[%clk 0:02:58]} 7... Nxd5 {[%clk 0:02:57.2]} 8. Nxd5 {[%clk 0:02:57.4]}
8... Qxd5 {[%clk 0:02:58.1]} 9. Be2 {[%clk 0:02:49]} 9... Qa5+ {[%clk
0:02:54.5]} 10. Nd2 {[%clk 0:02:46.1]} 10... c5 {[%clk 0:02:45.2]} 11. O-O
{[%clk 0:02:40]} 11... cxd4 {[%clk 0:02:44.6]} 12. Nb3 {[%clk 0:02:34.7]} 12...
Qf5 {[%clk 0:02:24.5]} 13. Bf3 {[%clk 0:02:18.7]} 13... e5 {[%clk 0:02:14.1]}
14. Bxa8 {[%clk 0:02:10.3]} 14... exf4 {[%clk 0:02:07.3]} 15. Nxd4 {[%clk
0:02:09.9]} 15... Qf6 {[%clk 0:02:01.3]} 16. Qf3 {[%clk 0:02:02.2]} 16... Bc5
{[%clk 0:01:57.8]} 17. Rfd1 {[%clk 0:01:57]} 17... Rd8 {[%clk 0:01:22.1]} 18.
Nb3 {[%clk 0:01:52.2]} 18... Rxd1+ {[%clk 0:00:58.9]} 19. Rxd1 {[%clk
0:01:53.1]} 19... Be6 {[%clk 0:00:48.6]} 20. Qxf4 {[%clk 0:01:47.4]} 20... Qxf4
{[%clk 0:00:46.6]} 21. Rd8+ {[%clk 0:01:45.7]} 21... Bf8 {[%clk 0:00:46.6]} 22.
exf4 {[%clk 0:01:46.4]} 22... Nd7 {[%clk 0:00:43.2]} 23. Nd4 {[%clk 0:01:43.3]}
23... Nc5 {[%clk 0:00:42.2]} 24. Nxe6 {[%clk 0:01:19.7]} 24... Nxe6 {[%clk
0:00:40.5]} 25. Rd7 {[%clk 0:01:18.9]} 25... a5 {[%clk 0:00:36.2]} 26. Bd5
{[%clk 0:01:17.8]} 26... Nxf4 {[%clk 0:00:33.2]} 27. Bxf7+ {[%clk 0:01:14.8]}
27... Kh8 {[%clk 0:00:33.5]} 28. Rd8 {[%clk 0:01:13.1]} 28... g5 {[%clk
0:00:30.9]} 29. Rxf8+ {[%clk 0:01:07.4]} 29... Kg7 {[%clk 0:00:31.2]} 30. Rb8
{[%clk 0:01:05.5]} 30... Kxf7 {[%clk 0:00:30.4]} 31. Rxb6 {[%clk 0:01:06.1]} 1-0

[Event "Early-Titled-Tuesday-Blitz-February-20-2024"]
[Site "Chess.com"]
[Date "2024.02.20"]
[Round "6"]
[White "LuisFSiles"]
[Black "ExtremeLearner"]
[Result "1-0"]
[WhiteElo "2328"]
[BlackElo "2581"]
[TimeControl "180+1"]
[EndTime "9:07:29 PST"]
[Termination "LuisFSiles won by resignation"]

1. e4 {[%clk 0:03:00.9]} 1... c5 {[%clk 0:02:59.2]} 2. Nf3 {[%clk 0:03:00.3]}
2... e6 {[%clk 0:02:59.7]} 3. c3 {[%clk 0:03:00]} 3... d5 {[%clk 0:02:59.3]} 4.
exd5 {[%clk 0:02:59.3]} 4... Qxd5 {[%clk 0:02:58.9]} 5. d4 {[%clk 0:02:59.5]}
5... Nf6 {[%clk 0:02:58.6]} 6. a3 {[%clk 0:02:59.6]} 6... Nc6 {[%clk 0:02:54.5]}
7. Be3 {[%clk 0:02:59.8]} 7... cxd4 {[%clk 0:02:53]} 8. cxd4 {[%clk 0:03:00.7]}
8... Be7 {[%clk 0:02:36]} 9. Nc3 {[%clk 0:02:59.5]} 9... Qa5 {[%clk 0:02:31.3]}
10. Bd3 {[%clk 0:02:58.5]} 10... O-O {[%clk 0:02:31.3]} 11. O-O {[%clk
0:02:57.3]} 11... Rd8 {[%clk 0:02:21.8]} 12. Qe2 {[%clk 0:02:55.1]} 12... a6
{[%clk 0:02:19.1]} 13. Rad1 {[%clk 0:02:53.3]} 13... b5 {[%clk 0:02:15.2]} 14.
Ne5 {[%clk 0:02:43.1]} 14... Bb7 {[%clk 0:02:07.4]} 15. Bb1 {[%clk 0:02:11.9]}
15... b4 {[%clk 0:02:00.3]} 16. axb4 {[%clk 0:02:06.2]} 16... Nxb4 {[%clk
0:01:59.4]} 17. Bg5 {[%clk 0:02:00.3]} 17... Nbd5 {[%clk 0:01:51.1]} 18. Rfe1
{[%clk 0:01:59.3]} 18... h6 {[%clk 0:01:31.3]} 19. Nxf7 {[%clk 0:01:27]} 19...
hxg5 {[%clk 0:01:15.8]} 20. Qxe6 {[%clk 0:01:22.9]} 20... g6 {[%clk 0:00:50.6]}
21. Nxd8+ {[%clk 0:00:59.3]} 21... Kh8 {[%clk 0:00:41.9]} 22. Nxb7 {[%clk
0:00:53.4]} 22... Qc7 {[%clk 0:00:27.7]} 23. Nxd5 {[%clk 0:00:50.8]} 1-0

[Event "Early-Titled-Tuesday-Blitz-February-20-2024"]
[Site "Chess.com"]
[Date "2024.02.20"]
[Round "6"]
[White "Beca95"]
[Black "NikitaShnadrygin"]
[Result "1-0"]
[WhiteElo "2888"]
[BlackElo "2704"]
[TimeControl "180+1"]
[EndTime "9:07:32 PST"]
[Termination "Beca95 won by resignation"]

1. e4 {[%clk 0:03:00.9]} 1... c5 {[%clk 0:02:59.8]} 2. Nc3 {[%clk 0:02:57.8]}
2... e6 {[%clk 0:02:57.8]} 3. Nge2 {[%clk 0:02:56.8]} 3... Nc6 {[%clk
0:02:57.8]} 4. g3 {[%clk 0:02:57.2]} 4... Nf6 {[%clk 0:02:54.7]} 5. Bg2 {[%clk
0:02:56.9]} 5... d5 {[%clk 0:02:55.5]} 6. exd5 {[%clk 0:02:54.8]} 6... exd5
{[%clk 0:02:56.4]} 7. d4 {[%clk 0:02:54.6]} 7... cxd4 {[%clk 0:02:57.3]} 8. Nxd4
{[%clk 0:02:54.7]} 8... Bc5 {[%clk 0:02:58]} 9. Nb3 {[%clk 0:02:51]} 9... Qe7+
{[%clk 0:02:44.9]} 10. Qe2 {[%clk 0:02:49.7]} 10... Qxe2+ {[%clk 0:02:44.6]} 11.
Kxe2 {[%clk 0:02:50.6]} 11... Bb6 {[%clk 0:02:41.7]} 12. Nxd5 {[%clk 0:02:50.2]}
12... Nxd5 {[%clk 0:02:42.6]} 13. Bxd5 {[%clk 0:02:50.3]} 13... O-O {[%clk
0:02:39]} 14. Bf4 {[%clk 0:02:32.4]} 14... Nb4 {[%clk 0:02:01.8]} 15. Be4 {[%clk
0:02:10.5]} 15... Re8 {[%clk 0:01:27.8]} 16. Kf3 {[%clk 0:02:09.8]} 16... f5
{[%clk 0:01:19.7]} 17. Bd3 {[%clk 0:01:59.3]} 17... Nxd3 {[%clk 0:01:19.8]} 18.
cxd3 {[%clk 0:02:00.1]} 18... Bd7 {[%clk 0:01:20.5]} 19. Rhc1 {[%clk 0:01:58.2]}
19... Bc6+ {[%clk 0:01:20.1]} 20. Rxc6 {[%clk 0:01:58.3]} 20... bxc6 {[%clk
0:01:21]} 21. Be3 {[%clk 0:01:58.6]} 21... Rad8 {[%clk 0:01:19.7]} 22. d4 {[%clk
0:01:58.8]} 22... Rd5 {[%clk 0:01:11.1]} 23. Rc1 {[%clk 0:01:58]} 23... Re6
{[%clk 0:01:11.1]} 24. Rc4 {[%clk 0:01:57.8]} 24... Kf7 {[%clk 0:01:07.9]} 25.
h4 {[%clk 0:01:57.3]} 25... Rb5 {[%clk 0:01:03.9]} 26. Ke2 {[%clk 0:01:56.2]}
26... f4 {[%clk 0:00:58.7]} 27. gxf4 {[%clk 0:01:55.1]} 27... Rh5 {[%clk
0:00:49.5]} 28. Nd2 {[%clk 0:01:54.4]} 28... Rxh4 {[%clk 0:00:47.2]} 29. Nf3
{[%clk 0:01:54.4]} 29... Rh5 {[%clk 0:00:29.3]} 30. Ng5+ {[%clk 0:01:54.2]}
30... Rxg5 {[%clk 0:00:27.1]} 31. fxg5 {[%clk 0:01:55.1]} 31... h5 {[%clk
0:00:25.7]} 32. f4 {[%clk 0:01:34.6]} 32... Kg6 {[%clk 0:00:20.7]} 33. Kf3
{[%clk 0:01:34.8]} 33... Kf5 {[%clk 0:00:20.8]} 34. a4 {[%clk 0:01:35.1]} 34...
a5 {[%clk 0:00:11.6]} 35. b4 {[%clk 0:01:34.8]} 35... axb4 {[%clk 0:00:10.2]}
36. a5 {[%clk 0:01:35.2]} 36... c5 {[%clk 0:00:11]} 37. axb6 {[%clk 0:01:34.5]}
1-0

[Event "Early-Titled-Tuesday-Blitz-February-20-2024"]
[Site "Chess.com"]
[Date "2024.02.20"]
[Round "6"]
[White "IM_ArthurDW08"]
[Black "Zhigalko_Sergei"]
[Result "1-0"]
[WhiteElo "2790"]
[BlackElo "2923"]
[TimeControl "180+1"]
[EndTime "9:07:45 PST"]
[Termination "IM_ArthurDW08 won on time"]

1. e4 {[%clk 0:02:57.6]} 1... c5 {[%clk 0:03:00.1]} 2. Nf3 {[%clk 0:02:57.7]}
2... Nc6 {[%clk 0:03:00.6]} 3. Bc4 {[%clk 0:02:50.5]} 3... Nf6 {[%clk
0:03:00.5]} 4. Nc3 {[%clk 0:02:48.5]} 4... e6 {[%clk 0:02:58.8]} 5. O-O {[%clk
0:02:45.5]} 5... d5 {[%clk 0:02:53.5]} 6. exd5 {[%clk 0:02:45.4]} 6... exd5
{[%clk 0:02:53.7]} 7. Bb5 {[%clk 0:02:46.1]} 7... d4 {[%clk 0:02:45.1]} 8. Re1+
{[%clk 0:02:25.4]} 8... Be7 {[%clk 0:02:23.9]} 9. Ne4 {[%clk 0:02:20.5]} 9...
Nxe4 {[%clk 0:02:18.8]} 10. Rxe4 {[%clk 0:02:21.4]} 10... O-O {[%clk 0:02:18.6]}
11. Bxc6 {[%clk 0:02:18.8]} 11... bxc6 {[%clk 0:02:16.8]} 12. d3 {[%clk
0:02:19.7]} 12... Bf5 {[%clk 0:02:05.5]} 13. Re1 {[%clk 0:02:14.8]} 13... Bd6
{[%clk 0:01:56.1]} 14. h3 {[%clk 0:02:14.1]} 14... h6 {[%clk 0:01:52.8]} 15. Nd2
{[%clk 0:02:13.1]} 15... Bc7 {[%clk 0:01:20.3]} 16. Ne4 {[%clk 0:02:12.3]} 16...
Re8 {[%clk 0:01:07]} 17. Qf3 {[%clk 0:02:05.8]} 17... Bxe4 {[%clk 0:00:50.2]}
18. Rxe4 {[%clk 0:02:06.7]} 18... Rxe4 {[%clk 0:00:49.9]} 19. Qxe4 {[%clk
0:02:06.6]} 19... Qd6 {[%clk 0:00:50.4]} 20. g3 {[%clk 0:02:06.5]} 20... Qd7
{[%clk 0:00:50.7]} 21. Bf4 {[%clk 0:01:57.3]} 21... Re8 {[%clk 0:00:49.2]} 22.
Qf3 {[%clk 0:01:53.4]} 22... Bxf4 {[%clk 0:00:49.3]} 23. Qxf4 {[%clk 0:01:54.3]}
23... Qxh3 {[%clk 0:00:38.4]} 24. Qd6 {[%clk 0:01:52.2]} 24... Qf5 {[%clk
0:00:24.1]} 25. Qxc6 {[%clk 0:01:51.3]} 25... Re2 {[%clk 0:00:23.8]} 26. Rf1
{[%clk 0:01:50.4]} 26... Rxc2 {[%clk 0:00:22.9]} 27. b4 {[%clk 0:01:51]} 27...
c4 {[%clk 0:00:12.3]} 28. dxc4 {[%clk 0:01:51]} 28... d3 {[%clk 0:00:13.2]} 29.
Qa8+ {[%clk 0:01:44.6]} 29... Kh7 {[%clk 0:00:13.1]} 30. Qxa7 {[%clk 0:01:45.5]}
30... Qe4 {[%clk 0:00:05.8]} 31. b5 {[%clk 0:01:25.3]} 31... d2 {[%clk 0:00:06]}
32. Qd7 {[%clk 0:01:25.3]} 32... Qe2 {[%clk 0:00:05.9]} 33. Qf5+ {[%clk
0:01:25.4]} 33... g6 {[%clk 0:00:02]} 34. Qxc2 {[%clk 0:01:26.3]} 34... h5
{[%clk 0:00:01.3]} 35. Qd1 {[%clk 0:01:26.5]} 1-0